bitfinex/quotes_ETHUSD_20211001
["timestamp","ask_amount","ask_price","bid_price","bid_amount"]
[1633069254788,10.6689814,3015.0,3014.4,1.2]
[1633069254789,10.6689814,3015.0,3014.7,0.2]
[1633069255188,4.97749,3014.9,3014.7,0.2]
[1633069255789,4.97749,3014.9,3014.7,1.04072564]
[1633069255990,4.82749,3014.9,3014.7,1.04072564]
[1633069256190,4.82749,3014.9,3014.7,4.34699996]
[1633069256390,4.82749,3014.9,3014.7,3.50627432]
[1633069256993,4.82749,3014.9,3014.7,4.66377919]
[1633069257196,4.82749,3014.9,3014.7,1.34600919]
[1633069257394,4.82749,3014.9,3014.8,0.85884784]
[1633069257994,2.3739214,3015.0,3014.8,0.85884784]
[1633069259196,2.3739214,3015.0,3014.7,4.66363919]
[1633069260196,7.3508314,3015.0,3014.7,4.66363919]
[1633069260396,7.3508314,3015.0,3014.8,0.76298541]
[1633069262998,7.3508314,3015.0,3014.7,1.34600919]
[1633069263400,7.3508314,3015.0,3014.7,0.18850432]
[1633069263999,7.3508314,3015.0,3014.7,1.0201232]
[1633069264401,7.3508314,3015.0,3014.7,0.18850432]
[1633069264601,7.3508314,3015.0,3014.6,3.3176894]
[1633069265400,8.20656347,3015.0,3014.6,3.3176894]
[1633069265862,7.3508314,3015.0,3014.6,3.3176894]
[1633069266800,7.3508314,3015.0,3014.6,4.32611834]
[1633069267001,7.3508314,3015.0,3014.6,3.3176894]
[1633069267401,15.3508314,3015.0,3014.6,3.3176894]
[1633069267600,10.3739214,3015.0,3014.6,3.3176894]
[1633069267800,2.3739214,3015.0,3014.6,3.3176894]
[1633069268401,4.97774,3014.8,3014.6,3.3176894]
[1633069268865,4.97774,3014.8,3014.0,6.503]
[1633069269601,3.31896,3014.5,3014.4,0.94349189]
[1633069270003,3.31896,3014.5,3014.2,0.78507465]
[1633069271005,4.97849,3014.4,3014.2,0.78507465]
[1633069271204,4.97849,3014.4,3014.3,0.87937413]
[1633069272005,3.31896,3014.5,3014.3,0.87937413]
[1633069273605,8.29647,3014.5,3014.3,0.87937413]
[1633069273806,3.31896,3014.5,3014.3,0.87937413]
[1633069274877,8.29658,3014.5,3014.2,4.10324265]
[1633069275010,3.31896,3014.5,3014.2,4.10324265]
[1633069276008,3.31896,3014.5,3014.4,1.13579339]
[1633069279211,3.31852,3014.9,3014.4,1.13579339]
[1633069279411,3.31852,3014.9,3014.8,0.90028176]
[1633069280214,3.31852,3014.9,3014.3,0.2]
[1633069280215,8.29575,3014.9,3014.3,0.2]
[1633069280412,3.31852,3014.9,3014.3,0.2]
[1633069281213,3.31852,3014.9,3014.7,4.12065634]
[1633069281616,9.0103214,3015.0,3014.7,4.12065634]
[1633069281617,2.3739214,3015.0,3014.7,4.12065634]
[1633069282313,7.3505514,3015.0,3014.7,4.12065634]
[1633069282712,7.3505514,3015.0,3014.9,1.1025953]
[1633069282915,7.3505514,3015.0,3014.7,4.12065634]
[1633069284513,7.3505514,3015.0,3014.8,1.11413569]
[1633069288126,7.3505514,3015.0,3014.7,3.3179624]
[1633069295391,15.3505514,3015.0,3014.7,3.3179624]
[1633069295590,10.3739214,3015.0,3014.7,3.3179624]
[1633069295992,2.3739214,3015.0,3014.7,3.3179624]
[1633069297390,4.97704,3014.9,3014.7,3.3179624]
[1633069297891,10.3739214,3015.0,3014.7,3.3179624]
[1633069298494,10.3739214,3015.0,3014.8,0.24311747]
[1633069298695,0.28186835,3014.7,3014.0,29.7088]
[1633069298898,0.008235,3014.4,3014.1,2.02984219]
[1633069299094,0.008235,3014.4,3014.0,4.219e-05]
[1633069299095,0.02448272,3014.2,3014.0,4.219e-05]
[1633069299294,1.14788272,3014.2,3013.5,0.57550575]
[1633069299495,3.71939945,3014.2,3013.5,0.57550575]
[1633069299696,0.87577029,3013.6,3013.5,0.003]
[1633069300194,0.87577029,3013.6,3013.2,0.003]
[1633069300395,0.87577029,3013.6,3013.5,0.86297387]
[1633069300798,5.85594029,3013.6,3013.5,0.86597387]
[1633069300999,5.85594029,3013.6,3013.5,0.003]
[1633069301399,5.85594029,3013.6,3013.2,0.003]
[1633069301597,4.98017,3013.6,3013.2,0.003]
[1633069302000,7.51353692,3013.6,3013.2,0.003]
[1633069302200,1.294,3013.4,3013.2,0.003]
[1633069302400,0.2,3013.3,3013.2,0.003]
[1633069302803,1.2,3013.3,3013.2,0.003]
[1633069303001,0.2,3013.3,3013.2,0.003]
[1633069303201,5.18104,3013.3,3013.2,0.003]
[1633069303405,6.47504,3013.3,3013.2,0.003]
[1633069303801,5.18104,3013.3,3013.2,0.003]
[1633069304201,9.50181,3013.3,3013.1,18.84453803]
[1633069304401,8.50181,3013.3,3013.2,0.00164022]
[1633069304601,17.79581,3013.3,3013.2,0.00164022]
[1633069304802,16.50181,3013.3,3013.2,0.00164022]
[1633069305202,16.50181,3013.3,3013.2,0.88843307]
[1633069305602,16.50181,3013.3,3013.2,0.00164022]
[1633069306403,17.79581,3013.3,3013.2,0.00164022]
[1633069306604,17.50181,3013.3,3013.2,0.00164022]
[1633069306804,16.50181,3013.3,3013.2,0.00164022]
[1633069307204,17.50181,3013.3,3013.2,0.00164022]
[1633069307403,18.79581,3013.3,3013.2,0.00164022]
[1633069307603,18.79581,3013.3,3013.1,18.84453803]
[1633069307804,3.5377951,3013.2,3013.1,12.20183803]
[1633069308004,3.7377951,3013.2,3013.1,12.20183803]
[1633069308205,1.2,3013.2,3013.1,12.20183803]
[1633069308403,1.2,3013.2,3013.1,5.55927803]
[1633069308404,2.10460142,3013.2,3013.1,5.55927803]
[1633069308605,3.39860142,3013.2,3013.1,5.55927803]
[1633069308806,1.2,3013.2,3013.1,5.55927803]
[1633069309004,0.2,3013.2,3013.1,5.55927803]
[1633069311204,1.494,3013.2,3013.1,1.25567803]
[1633069311606,2.494,3013.2,3013.1,1.25567803]
[1633069311804,1.2,3013.2,3013.1,1.25567803]
[1633069312004,1.2,3013.2,3013.1,1.15567803]
[1633069312203,1.11138139,3013.2,3013.1,1.15567803]
[1633069312403,2.11138139,3013.2,3013.1,1.15567803]
[1633069312603,3.40538139,3013.2,3013.1,1.15567803]
[1633069312804,2.11138139,3013.2,3013.1,1.15567803]
[1633069313603,3.40538139,3013.2,3013.1,1.15567803]
[1633069314008,2.11138139,3013.2,3013.1,1.15567803]
[1633069314204,1.2,3013.2,3013.1,1.15567803]
[1633069314413,0.2,3013.2,3013.1,1.15567803]
[1633069315205,1.18967893,3013.2,3013.1,1.15567803]
[1633069318008,3.48367893,3013.2,3013.1,1.15567803]
[1633069318408,2.18967893,3013.2,3013.1,1.15567803]
[1633069319610,3.48367893,3013.2,3013.1,1.15567803]
[1633069319810,2.18967893,3013.2,3013.1,1.15567803]
[1633069320811,3.48367893,3013.2,3013.1,1.15567803]
[1633069321511,3.48367893,3013.2,3012.8,0.003]
[1633069321713,3.48367893,3013.2,3012.6,0.0001]
[1633069321714,0.03414713,3012.9,3012.6,0.0001]
[1633069321912,0.03414713,3012.9,3011.9,0.006]
[1633069321913,0.2,3012.8,3011.9,0.006]
[1633069322313,1.2,3012.8,3011.9,0.006]
[1633069322510,1.2,3012.8,3012.3,1.19460596]
[1633069322711,0.2,3012.8,3012.6,0.7301716]
[1633069322914,3.322,3012.9,3012.6,0.7301716]
[1633069323513,4.98106,3012.8,3012.6,0.7301716]
[1633069323911,4.98106,3012.8,3012.6,0.6801716]
[1633069324315,8.0,3012.8,3012.6,0.6801716]
[1633069324511,6.6429293,3012.9,3012.6,0.6801716]
[1633069325114,6.64219,3012.7,3012.6,0.6801716]
[1633069325313,6.64219,3012.7,3012.3,0.0775]
[1633069325914,8.0,3012.8,3012.3,0.0775]
[1633069326118,8.0,3012.8,3012.4,0.99826548]
[1633069326314,8.0,3012.8,3012.4,1.85566946]
[1633069326715,4.98141,3012.5,3012.4,1.85566946]
[1633069328315,4.98141,3012.5,3012.4,1.75566946]
[1633069328715,4.98141,3012.5,3012.4,0.89826548]
[1633069328918,4.98141,3012.5,3012.4,2.19226548]
[1633069329315,4.98141,3012.5,3012.4,0.89826548]
[1633069329519,8.0,3012.8,3012.4,0.89826548]
[1633069330018,3.322,3012.9,3012.4,0.89826548]
[1633069331418,3.322,3012.9,3012.5,0.71091864]
[1633069331618,4.98092,3012.7,3012.5,0.71091864]
[1633069332721,8.0,3012.9,3012.6,1.298477]
[1633069332920,8.0,3012.9,3012.7,2.16547112]
[1633069333120,0.003,3013.0,3012.7,0.2]
[1633069333323,8.0,3012.8,3012.7,0.2]
[1633069333522,0.003,3013.0,3012.7,3.45946611]
[1633069333722,8.3039555,3013.0,3012.7,0.2]
[1633069333925,11.3234955,3013.0,3012.7,0.2]
[1633069334122,3.3234955,3013.0,3012.7,0.2]
[1633069334322,8.0,3012.9,3012.7,0.2]
[1633069334525,3.3234955,3013.0,3012.7,0.2]
[1633069334722,3.3234955,3013.0,3012.8,1.294]
[1633069334924,0.003,3013.0,3012.6,0.004477]
[1633069335125,0.003,3013.0,3012.7,1.96585498]
[1633069335325,2.8282559,3013.4,3012.7,3.12785498]
[1633069335524,8.0,3013.2,3013.1,0.96993297]
[1633069335724,2.8282559,3013.4,3012.7,1.162]
[1633069335924,4.98021,3013.1,3013.0,2.36791407]
[1633069336126,4.98021,3013.1,3013.0,1.07391407]
[1633069336724,4.98021,3013.1,3013.0,2.01828076]
[1633069337325,12.98021,3013.1,3012.7,1.162]
[1633069337526,4.98046,3013.0,3012.9,1.294]
[1633069337730,4.98046,3013.0,3012.6,0.004477]
[1633069337988,4.98046,3013.0,3012.7,1.96624909]
[1633069338388,4.98046,3013.0,3012.9,1.89983092]
[1633069339589,4.98046,3013.0,3012.9,3.19383092]
[1633069339790,4.98046,3013.0,3012.9,2.27826688]
[1633069340588,11.3203063,3013.1,3012.9,2.27826688]
[1633069340787,3.3203063,3013.1,3012.9,0.98426688]
[1633069341989,8.3005763,3013.1,3012.9,0.98426688]
[1633069342390,16.3005763,3013.1,3012.9,0.98426688]
[1633069342789,8.3005763,3013.1,3012.9,0.98426688]
[1633069344189,16.3005763,3013.1,3012.9,0.98426688]
[1633069344390,8.3005763,3013.1,3012.9,0.98426688]
[1633069344590,16.3005763,3013.1,3012.9,0.98426688]
[1633069344792,8.3005763,3013.1,3012.9,0.98426688]
[1633069344993,16.3005763,3013.1,3012.9,0.98426688]
[1633069347597,11.3203063,3013.1,3012.6,0.004477]
[1633069348594,4.98064,3012.9,3012.6,0.004477]
[1633069348796,4.98064,3012.9,3012.7,0.9299798]
[1633069354606,4.98077,3012.8,3012.7,0.9299798]
[1633069356007,4.98077,3012.8,3012.7,2.89842393]
[1633069356211,4.98077,3012.8,3012.7,0.9299798]
[1633069356608,4.98077,3012.8,3012.7,2.89863554]
[1633069358811,5.85686653,3012.8,3012.5,0.003]
[1633069359213,5.85686653,3012.8,3012.4,1.97252246]
[1633069359611,5.85686653,3012.8,3012.5,0.003]
[1633069359813,5.85686653,3012.8,3012.6,0.98025895]
[1633069360214,3.320709,3012.7,3012.6,0.98025895]
[1633069360413,8.301689,3012.7,3012.6,0.98025895]
[1633069360812,16.301689,3012.7,3012.6,0.98025895]
[1633069361213,16.301689,3012.7,3012.4,0.003]
[1633069361413,4.98084,3012.6,3012.4,0.003]
[1633069361812,11.320709,3012.7,3012.4,0.003]
[1633069362013,3.320709,3012.7,3012.4,0.003]
[1633069362212,8.0,3012.6,3012.4,0.003]
[1633069362412,3.320709,3012.7,3012.4,0.003]
[1633069362613,3.320709,3012.7,3012.6,1.0814035]
[1633069362815,8.301389,3012.7,3012.4,0.57511116]
[1633069363013,8.301389,3012.7,3012.5,0.003]
[1633069363014,11.320709,3012.7,3012.5,0.003]
[1633069363814,11.320709,3012.7,3012.4,0.003]
[1633069364215,3.320709,3012.7,3012.6,0.9946711]
[1633069365417,8.301429,3012.7,3012.6,0.9946711]
[1633069365817,8.301429,3012.7,3012.4,0.57531365]
[1633069366019,3.320709,3012.7,3012.4,0.57531365]
[1633069366216,3.320709,3012.7,3012.5,0.003]
[1633069366616,4.98085,3012.6,3012.5,0.57571827]
[1633069366816,4.98085,3012.6,3012.5,0.003]
[1633069367019,4.98085,3012.6,3012.4,0.57572413]
[1633069367416,4.98085,3012.6,3012.5,0.57571713]
[1633069367616,3.320709,3012.7,3012.5,1.60716856]
[1633069368016,8.301479,3012.7,3012.5,1.60716856]
[1633069368216,8.301479,3012.7,3012.5,1.03445143]
[1633069368420,3.320709,3012.7,3012.5,1.6074174]
[1633069369018,4.98082,3012.6,3012.5,1.6074174]
[1633069369218,4.98082,3012.6,3012.5,0.57596597]
[1633069369819,8.86749297,3012.6,3012.3,0.0775]
[1633069370019,0.24205764,3012.5,3012.3,0.0775]
[1633069370219,2.07248899,3012.4,3012.3,0.0775]
[1633069370421,2.27248899,3012.4,3012.3,0.0775]
[1633069371023,3.56648899,3012.4,3012.3,0.0775]
[1633069371223,3.56648899,3012.4,3012.1,0.006]
[1633069371419,3.56648899,3012.4,3012.0,0.009]
[1633069371420,0.008338,3012.2,3012.0,0.009]
[1633069371620,0.208338,3012.2,3011.7,0.006]
[1633069371821,2.75267541,3012.2,3011.7,0.006]
[1633069372021,1.294,3012.0,3011.7,0.006]
[1633069372220,1.0,3012.1,3011.7,0.006]
[1633069372419,3.32209,3012.1,3011.7,0.006]
[1633069372623,4.98318,3012.0,3011.7,0.006]
[1633069373221,4.98318,3012.0,3011.7,0.96307339]
[1633069373422,1.0029178,3011.9,3011.7,0.006]
[1633069373624,4.98318,3012.0,3011.7,0.006]
[1633069374020,4.98318,3012.0,3011.8,1.21033125]
[1633069374622,0.78487613,3011.9,3011.8,1.21033125]
[1633069374822,4.98318,3012.0,3011.8,1.21033125]
[1633069375221,4.98318,3012.0,3011.9,1.97623996]
[1633069375422,6.27718,3012.0,3011.9,1.97623996]
[1633069375820,6.27718,3012.0,3011.8,1.97563574]
[1633069375821,7.2475632,3012.0,3011.8,1.97563574]
[1633069376022,5.9535632,3012.0,3011.8,1.97563574]
[1633069378223,5.9535632,3012.0,3011.8,2.83867665]
[1633069378425,4.98318,3012.0,3011.9,1.97487923]
[1633069379224,4.98318,3012.0,3011.8,1.97486327]
[1633069379424,0.71479294,3011.9,3011.8,1.97486327]
[1633069380023,0.71479294,3011.9,3011.8,2.90163274]
[1633069380224,4.98318,3012.0,3011.8,2.90163274]
[1633069380424,4.98318,3012.0,3011.9,1.97431883]
[1633069381825,4.98318,3012.0,3011.8,1.97420453]
[1633069384027,4.98318,3012.0,3011.7,0.006]
[1633069384426,5.85978019,3012.0,3011.7,0.006]
[1633069384624,4.98318,3012.0,3011.7,0.006]
[1633069385627,0.95193701,3011.8,3011.7,0.006]
[1633069385825,4.98323,3011.8,3011.7,1.97810269]
[1633069387026,4.98323,3011.8,3011.7,1.977632]
[1633069387428,4.98323,3011.8,3011.7,0.006]
[1633069387626,4.98323,3011.8,3011.7,0.00785]
[1633069388225,4.98323,3011.8,3011.7,0.00695]
[1633069388427,4.98323,3011.8,3011.6,0.006]
[1633069388428,0.77076855,3011.7,3011.6,0.006]
[1633069388626,3.30483749,3011.7,3011.6,0.006]
[1633069388827,1.75926531,3011.7,3011.6,0.006]
[1633069389027,1.2,3011.8,3011.4,0.006]
[1633069389231,1.98763194,3011.5,3010.8,0.006]
[1633069389432,0.6601138,3010.7,3010.1,1.19271007]
[1633069389629,0.6601138,3010.7,3010.0,0.009]
[1633069389630,0.02417523,3010.2,3010.0,0.009]
[1633069389828,0.2,3010.1,3010.0,0.009]
[1633069390227,3.52438,3010.4,3010.0,0.009]
[1633069390428,0.2,3010.4,3010.0,0.009]
[1633069390627,4.98495,3010.3,3010.0,0.009]
[1633069390827,3.324,3010.2,3010.0,0.009]
[1633069391630,4.98621,3010.1,3010.0,0.009]
[1633069393029,4.96069486,3010.1,3010.0,0.009]
[1633069393429,4.92350096,3010.1,3010.0,0.009]
[1633069393630,4.72880269,3010.1,3010.0,0.009]
[1633069393829,3.324,3010.2,3010.0,0.009]
[1633069394895,8.3091,3010.2,3010.0,0.009]
[1633069395434,0.2,3010.1,3009.2,0.84820328]
[1633069395832,4.98617,3009.7,3009.2,0.84820328]
[1633069396033,4.98617,3009.7,3009.1,0.006]
[1633069396232,4.98617,3009.7,3009.4,0.93638598]
[1633069397233,8.3102285,3009.7,3009.4,0.93638598]
[1633069397433,4.98632,3009.6,3009.1,0.006]
[1633069398233,4.98632,3009.6,3009.2,0.0010747]
[1633069398435,4.98632,3009.6,3009.4,0.95362296]
[1633069399035,3.3240585,3009.7,3009.4,0.95362296]
[1633069399639,4.98606,3009.6,3009.4,0.95362296]
[1633069400237,3.3240585,3009.7,3009.4,0.30362296]
[1633069400641,8.3098385,3009.7,3009.4,0.30362296]
[1633069400899,3.3240585,3009.7,3009.4,0.30362296]
[1633069401039,0.003,3010.0,3009.6,0.005066]
[1633069401239,0.003,3010.0,3009.6,1.251466]
[1633069401840,4.98831,3010.0,3009.8,0.90120079]
[1633069402043,5.84279999,3010.0,3009.8,0.90120079]
[1633069402243,4.98831,3010.0,3009.6,0.005066]
[1633069402843,3.3236616,3009.9,3009.6,0.005066]
[1633069403043,8.3091416,3009.9,3009.6,0.005066]
[1633069403243,3.32369,3009.8,3009.4,0.30362296]
[1633069403907,0.003,3010.0,3009.7,0.004047]
[1633069404245,0.003,3010.0,3009.7,0.80351029]
[1633069404443,0.003,3010.0,3009.8,1.85232071]
[1633069404645,0.003,3010.0,3009.9,0.94542124]
[1633069404849,0.003,3010.0,3009.7,0.80351029]
[1633069405044,4.98539,3009.9,3009.3,1.0]
[1633069405246,4.98539,3009.9,3009.4,1.85220193]
[1633069405846,4.98539,3009.9,3009.5,0.89504867]
[1633069406046,6.6476103,3009.7,3009.3,0.2]
[1633069406246,4.98622,3009.5,3009.3,0.2]
[1633069406448,4.98622,3009.5,3009.2,0.0010747]
[1633069406917,0.96910648,3009.3,3009.2,0.0010747]
[1633069407051,3.62880233,3009.3,3009.2,0.0010747]
[1633069407249,0.96910648,3009.3,3009.2,0.0010747]
[1633069408449,0.83215754,3009.4,3009.2,0.0010747]
[1633069408649,4.98731,3009.3,3009.2,0.0010747]
[1633069409450,5.85867338,3009.3,3009.2,0.0010747]
[1633069410252,4.98731,3009.3,3009.2,0.0010747]
[1633069412256,6.18844692,3009.3,3009.2,0.0010747]
[1633069413059,6.18844692,3009.3,3009.1,0.0070747]
[1633069413060,10.2230002,3009.3,3008.4,0.006]
[1633069413257,0.008331,3009.0,3008.4,0.006]
[1633069413462,1.12970629,3008.6,3008.4,0.006]
[1633069413657,0.2,3008.7,3008.4,0.006]
[1633069414056,4.98781,3008.6,3008.4,0.006]
[1633069414656,4.98781,3008.6,3008.3,0.0001]
[1633069414858,1.494,3008.5,3008.3,0.0001]
[1633069415057,1.2,3008.5,3008.3,0.0001]
[1633069415262,4.98871,3008.4,3008.3,0.0001]
[1633069415457,5.18871,3008.4,3008.3,0.0001]
[1633069416262,6.48271,3008.4,3008.3,0.0001]
[1633069416460,6.48271,3008.4,3008.1,0.006]
[1633069416461,21.18871,3008.4,3008.1,0.006]
[1633069416758,0.008165,3008.3,3008.1,0.006]
[1633069416960,0.2,3008.2,3008.1,0.006]
[1633069417359,0.98896061,3008.2,3008.1,0.006]
[1633069417763,1.1930693,3008.1,3008.0,0.009]
[1633069417961,1.3930693,3008.1,3008.0,0.009]
[1633069419164,8.0453493,3008.1,3008.0,0.009]
[1633069419364,1.20771031,3007.1,3007.0,0.0027704]
[1633069419563,11.29740501,3008.1,3007.0,0.0027704]
[1633069419564,0.02495751,3007.3,3007.0,0.0027704]
[1633069419763,0.2,3007.5,3007.0,0.0027704]
[1633069420366,5.18948,3007.5,3007.0,0.0027704]
[1633069420969,6.653828,3007.2,3007.0,0.0027704]
[1633069421569,4.99031,3007.1,3007.0,0.0027704]
[1633069421762,12.99031,3007.1,3007.0,0.0027704]
[1633069421964,8.0,3007.1,3007.0,0.0027704]
[1633069422563,8.0,3007.1,3007.0,1.2967704]
[1633069422765,6.653828,3007.2,3007.0,1.3010134]
[1633069422766,11.32683,3007.2,3007.0,1.3010134]
[1633069422966,0.003,3008.0,3007.0,0.0070134]
[1633069423367,0.95875469,3008.0,3007.4,0.9459135]
[1633069423964,0.003,3008.0,3007.4,0.9459135]
[1633069424164,3.3259666,3007.7,3007.4,0.9459135]
[1633069424370,3.3259666,3007.7,3007.5,1.294]
[1633069424667,12.99177,3008.0,3007.5,1.294]
[1633069424668,0.003,3008.0,3007.6,0.204245]
[1633069424928,0.003,3008.0,3007.6,3.528845]
[1633069425069,0.003,3008.0,3007.6,4.528845]
[1633069425266,0.003,3008.0,3007.6,1.204245]
[1633069425471,0.003,3008.0,3007.6,2.1722925]
[1633069425666,0.003,3008.0,3007.6,1.204245]
[1633069425866,0.003,3008.0,3007.6,1.924745]
[1633069426066,0.85558873,3008.0,3007.6,2.924745]
[1633069426266,0.003,3008.0,3007.6,1.924745]
[1633069426665,0.003,3008.0,3007.8,0.95257608]
[1633069426871,0.003,3008.0,3007.6,0.204245]
[1633069427267,0.003,3008.0,3007.9,0.77678532]
[1633069427666,0.003,3008.0,3007.9,2.07078532]
[1633069427930,0.003,3008.0,3007.9,0.77678532]
[1633069428267,0.003,3008.0,3007.9,1.90607702]
[1633069428473,0.003,3008.0,3007.9,1.1292917]
[1633069428668,0.003,3008.0,3007.6,0.204245]
[1633069428870,0.003,3008.0,3007.4,1.321409]
[1633069429068,0.003,3008.0,3007.7,1.294]
[1633069429268,0.003,3008.0,3007.7,0.2]
[1633069429469,0.003,3008.0,3007.8,0.90974696]
[1633069429869,0.003,3008.0,3007.9,1.21215161]
[1633069430672,0.003,3008.0,3007.9,2.50615161]
[1633069431071,0.003,3008.0,3007.9,3.50615161]
[1633069431273,0.003,3008.0,3007.9,2.70615161]
[1633069431473,0.003,3008.0,3007.9,2.41215161]
[1633069431671,0.003,3008.0,3007.9,1.41215161]
[1633069431871,0.003,3008.0,3007.9,2.41215161]
[1633069432073,0.003,3008.0,3007.9,1.41215161]
[1633069432272,0.003,3008.0,3007.9,2.41215161]
[1633069432473,0.003,3008.0,3007.9,2.70615161]
[1633069432673,0.003,3008.0,3007.9,3.71032361]
[1633069434274,0.003,3008.0,3007.9,0.2]
[1633069434684,0.003,3008.0,3007.9,1.494]
[1633069435476,0.003,3008.0,3007.9,2.54604626]
[1633069435880,0.003,3008.0,3007.9,3.54604626]
[1633069436676,0.003,3008.0,3007.9,3.55079526]
[1633069437076,0.003,3008.0,3007.9,2.25679526]
[1633069437876,0.003,3008.0,3007.9,7.24376526]
[1633069438275,0.003,3008.0,3007.9,2.25679526]
[1633069439475,0.003,3008.0,3007.9,2.25871848]
[1633069439676,0.003,3008.0,3007.9,3.55271848]
[1633069439950,0.003,3009.0,3008.6,0.95788438]
[1633069440078,0.003,3009.0,3008.7,3.0371538]
[1633069440276,0.003,3009.0,3008.7,0.2]
[1633069440487,0.003,3009.0,3008.7,1.2]
[1633069440877,0.003,3009.0,3008.8,1.11115793]
[1633069441078,0.003,3009.0,3008.9,0.2]
[1633069441676,0.003,3009.0,3008.9,1.7345]
[1633069442077,0.003,3009.0,3008.9,2.7345]
[1633069442277,0.003,3009.0,3008.9,1.7345]
[1633069442478,0.003,3009.0,3008.9,2.7345]
[1633069442676,0.003,3009.0,3008.9,1.7345]
[1633069442879,0.003,3009.0,3008.9,2.7345]
[1633069445078,0.003,3009.0,3008.9,1.7345]
[1633069445279,0.003,3009.0,3008.9,1.2]
[1633069445478,0.003,3009.0,3008.9,0.2]
[1633069446482,0.003,3009.0,3008.6,0.95788438]
[1633069446483,1.305418,3009.0,3008.6,0.95788438]
[1633069446680,0.011418,3009.0,3008.6,0.95788438]
[1633069446883,4.998298,3009.0,3008.6,0.95788438]
[1633069447080,4.98988,3009.0,3008.6,0.95788438]
[1633069447281,0.79129769,3008.8,3008.6,0.95788438]
[1633069447880,4.98988,3009.0,3008.6,0.95788438]
[1633069448182,3.3250143,3008.9,3008.6,0.95788438]
[1633069449585,4.98722,3008.8,3008.6,0.95788438]
[1633069451786,11.3250143,3008.9,3008.6,0.95788438]
[1633069452188,1.294,3008.8,3008.6,0.95788438]
[1633069452386,11.3250143,3008.9,3008.6,0.95788438]
[1633069452587,1.0,3008.8,3008.6,0.95788438]
[1633069452788,4.98729,3008.8,3008.6,0.95788438]
[1633069452988,0.9597032,3009.0,3008.6,0.95788438]
[1633069453790,5.9465732,3009.0,3008.6,0.95788438]
[1633069453993,4.98987,3009.0,3008.6,0.95788438]
[1633069454190,3.324576,3008.9,3008.6,0.95788438]
[1633069456248,0.003,3009.0,3008.6,0.95788438]
[1633069456449,0.003,3009.0,3008.6,5.94373438]
[1633069456851,0.003,3009.0,3008.7,3.06189412]
[1633069457050,0.003,3009.0,3008.8,1.86181715]
[1633069457251,0.003,3009.0,3008.9,0.2]
[1633069457451,0.003,3009.0,3008.9,6.84684]
[1633069457651,0.003,3009.0,3008.9,9.44873394]
[1633069458454,0.003,3009.0,3008.9,2.06254318]
[1633069460853,0.003,3009.0,3008.9,0.2]
[1633069461153,0.003,3009.0,3008.6,1.95788438]
[1633069461353,0.003,3009.0,3008.7,1.86564981]
[1633069462555,4.98714,3008.9,3008.7,1.86564981]
[1633069463157,0.003,3009.0,3008.7,1.86564981]
[1633069463756,4.98693,3008.9,3008.7,1.86564981]
[1633069464755,0.003,3009.0,3008.7,1.86564981]
[1633069464956,4.98972,3009.0,3008.8,0.93526193]
[1633069465157,0.003,3009.0,3008.9,1.87071988]
[1633069465556,0.003,3009.0,3008.9,1.87090233]
[1633069465758,0.003,3009.0,3008.7,1.87090268]
[1633069466357,4.9897,3009.0,3008.7,3.05214185]
[1633069466556,4.9897,3009.0,3008.8,1.87104251]
[1633069466967,4.9897,3009.0,3008.9,1.87127165]
[1633069467156,4.9897,3009.0,3008.9,1.8712616]
[1633069467356,0.003,3009.0,3008.7,1.87125929]
[1633069467556,0.003,3009.0,3008.8,1.87138113]
[1633069467757,0.003,3009.0,3008.9,1.87138781]
[1633069467959,0.003,3009.0,3008.9,1.87139059]
[1633069468163,0.003,3009.0,3008.9,1.87137867]
[1633069468557,0.003,3009.0,3008.8,1.87137229]
[1633069468957,0.003,3009.0,3008.8,2.07137229]
[1633069469164,0.003,3009.0,3008.9,1.87175]
[1633069469765,0.003,3009.0,3008.5,4.8417]
[1633069469766,0.94340154,3008.2,3007.5,0.003]
[1633069469976,0.94340154,3008.2,3007.1,4.77086193]
[1633069469977,4.49901819,3007.5,3007.1,2.48154038]
[1633069470160,4.49901819,3007.5,3007.0,0.0027704]
[1633069470161,0.02450962,3007.2,3007.0,0.0027704]
[1633069470360,3.35121042,3007.2,3007.0,0.0027704]
[1633069470760,0.98798115,3007.1,3007.0,0.0027704]
[1633069470962,1.18798115,3007.1,3007.0,0.0038088]
[1633069473767,0.2,3007.1,3007.0,0.0038088]
[1633069474768,0.2,3007.1,3007.0,0.91307661]
[1633069474966,16.3168108,3007.2,3007.0,0.91708061]
[1633069474967,3.3267008,3007.2,3007.0,0.91708061]
[1633069475164,3.3267008,3007.2,3007.0,0.0078128]
[1633069476869,3.3267008,3007.2,3007.0,0.0038088]
[1633069477268,3.3267008,3007.2,3007.1,1.19426352]
[1633069477665,3.3267008,3007.2,3007.0,0.0038088]
[1633069479268,3.3267008,3007.2,3007.0,0.95841375]
[1633069479468,3.3267008,3007.2,3007.0,0.95828682]
[1633069479667,3.3267008,3007.2,3007.1,1.13244596]
[1633069479869,3.3267008,3007.2,3007.0,0.95828682]
[1633069480067,3.3267008,3007.2,3007.1,0.57269306]
[1633069480266,3.3267008,3007.2,3007.0,0.57651776]
[1633069480467,3.3267008,3007.2,3007.0,0.57670282]
[1633069481269,3.3267008,3007.2,3007.0,0.57669828]
[1633069481468,3.3267008,3007.2,3007.1,0.0010384]
[1633069481667,3.3267008,3007.2,3007.1,0.57383411]
[1633069481868,3.3267008,3007.2,3007.1,0.0010384]
[1633069484472,3.3267008,3007.2,3007.1,1.03751905]
[1633069484672,3.3267008,3007.2,3007.1,1.61017192]
[1633069484872,3.3267008,3007.2,3007.1,0.57369127]
[1633069485074,3.3267008,3007.2,3007.1,0.0010384]
[1633069486072,3.3267008,3007.2,3007.1,0.57368525]
[1633069486472,3.3267008,3007.2,3007.1,0.0010384]
[1633069490075,3.3267008,3007.2,3007.1,0.573609]